fUST/lending_fUST_20240728
["ID","MTS","AMOUNT","RATE_DAILY","PERIOD"]
[333395526,1722102653038,-562.69,0.00013972,2]
[333395527,1722102653050,-640.77,0.00013972,2]
[333395528,1722102653062,-500.0,0.00013972,2]
[333395529,1722102653071,-500.0,0.00013972,2]
[333395530,1722102653081,-500.0,0.00013972,2]
[333395531,1722102653091,-500.0,0.00013972,2]
[333395532,1722102653100,-500.0,0.00013972,2]
[333395533,1722102653110,-500.0,0.00013972,2]
[333395534,1722102653119,-500.0,0.00013972,2]
[333395535,1722102653129,-937.5,0.00013972,2]
[333395536,1722102653138,-500.0,0.00013972,2]
[333395537,1722102653148,-500.0,0.00013972,2]
[333395538,1722102653157,-500.0,0.00013972,2]
[333395539,1722102653166,-500.0,0.00013972,2]
[333395540,1722102653175,-615.61278734,0.00013972,2]
[333395541,1722102653185,-500.0,0.00013972,2]
[333395542,1722102653196,-500.0,0.00013972,2]
[333395543,1722102653206,-306.08461225,0.00013972,2]
[333395544,1722102653215,-500.0,0.00013972,2]
[333395545,1722102653226,-500.0,0.00013972,2]
[333395546,1722102653235,-500.0,0.00013972,2]
[333395547,1722102653244,-514.68123155,0.00013972,2]
[333395548,1722102653254,-523.24,0.00013972,2]
[333395549,1722102653264,-500.0,0.00013972,2]
[333395550,1722102653273,-500.0,0.00013972,2]
[333395551,1722102653283,-500.0,0.00013972,2]
[333395552,1722102653293,-500.0,0.00013972,2]
[333395553,1722102653302,-500.0,0.00013972,2]
[333395554,1722102653312,-500.0,0.00013972,2]
[333395555,1722102653321,-500.0,0.00013972,2]
[333395556,1722102653336,-500.0,0.00013972,2]
[333395557,1722102653346,-500.0,0.00013972,2]
[333395558,1722102653357,-500.0,0.00013972,2]
[333395559,1722102653368,-500.0,0.00013972,2]
[333395560,1722102653378,-500.0,0.00013972,2]
[333395561,1722102653387,-500.0,0.00013972,2]
[333395562,1722102653397,-500.0,0.00013972,2]
[333395563,1722102653406,-500.0,0.00013972,2]
[333395564,1722102653417,-500.0,0.00013972,2]
[333395565,1722102653428,-500.0,0.00013972,2]
[333395566,1722102653438,-500.0,0.00013972,2]
[333395567,1722102653449,-500.0,0.00013972,2]
[333395568,1722102653459,-500.0,0.00013972,2]
[333395569,1722102653468,-975.16,0.00013972,2]
[333395570,1722102653477,-500.0,0.00013972,2]
[333395571,1722102653487,-1128.99,0.00013972,2]
[333395572,1722102653496,-933.2,0.00013972,2]
[333395573,1722102653506,-500.0,0.00013972,2]
[333395574,1722102653515,-500.0,0.00013972,2]
[333395575,1722102653525,-500.0,0.00013972,2]
[333395576,1722102653534,-500.0,0.00013972,2]
[333395577,1722102653543,-500.0,0.00013972,2]
[333395578,1722102653553,-500.0,0.00013972,2]
[333395579,1722102653563,-500.0,0.00013972,2]
[333395580,1722102653572,-500.0,0.00013972,2]
[333395581,1722102653581,-1804.08,0.00013972,2]
[333395582,1722102653591,-3868.36,0.00013972,2]
[333395583,1722102653600,-599.4,0.00013972,2]
[333395584,1722102653610,-500.0,0.00013972,2]
[333395585,1722102653619,-7069.55,0.00013972,2]
[333395586,1722102653629,-500.0,0.00013972,2]
[333395587,1722102653638,-500.0,0.00013972,2]
[333395588,1722102653650,-1233.51,0.00013972,2]
[333395589,1722102653660,-500.0,0.00013972,2]
[333395590,1722102653670,-500.0,0.00013972,2]
[333395591,1722102653679,-504.89101976,0.00013972,2]
[333395592,1722102653777,-500.0,0.00013972,2]
[333395593,1722102653797,-3136.41,0.00013972,2]
[333395594,1722102653810,-500.0,0.00013972,2]
[333395595,1722102653820,-500.0,0.00013972,2]
[333395596,1722102653832,-500.0,0.00013972,2]
[333395597,1722102653842,-189.08406,0.00013972,2]
[333395598,1722102653853,-980.67,0.00013972,2]
[333395599,1722102653864,-500.0,0.00013972,2]
[333395600,1722102653873,-500.0,0.00013972,2]
[333395601,1722102653883,-500.0,0.00013972,2]
[333395602,1722102653892,-500.0,0.00013972,2]
[333395603,1722102653901,-503.57721917,0.00013972,2]
[333395604,1722102653910,-500.0,0.00013972,2]
[333395605,1722102653920,-520.4220506,0.00013972,2]
[333395606,1722102653929,-1299.95,0.00013972,2]
[333395607,1722102653941,-500.0,0.00013972,2]
[333395608,1722102653952,-2057.15,0.00013972,2]
[333395609,1722102653963,-500.0,0.00013972,2]
[333395610,1722102653972,-500.0,0.00013972,2]
[333395611,1722102653982,-500.0,0.00013972,2]
[333395612,1722102653991,-500.0,0.00013972,2]
[333395613,1722102654000,-567.63,0.00013972,2]
[333395614,1722102654010,-500.0,0.00013972,2]
[333395615,1722102654021,-500.0,0.00013972,2]
[333395616,1722102654032,-500.0,0.00013972,2]
[333395617,1722102654041,-500.0,0.00013972,2]
[333395618,1722102654051,-500.0,0.00013972,2]
[333395619,1722102654061,-506.75001653,0.00013972,2]
[333395620,1722102654071,-702.63,0.00013972,2]
[333395621,1722102654080,-878.8,0.00013972,2]
[333395622,1722102654090,-500.0,0.00013972,2]
[333395623,1722102654099,-500.0,0.00013972,2]
[333395624,1722102654108,-500.0,0.00013972,2]
[333395625,1722102654118,-500.0,0.00013972,2]
[333395626,1722102654127,-555.9,0.00013972,2]
[333395627,1722102654137,-500.0,0.00013972,2]
[333395628,1722102654146,-500.0,0.00013972,2]
[333395629,1722102654155,-500.0,0.00013972,2]
[333395630,1722102654164,-1183.23,0.00013972,2]
[333395631,1722102654173,-500.0,0.00013972,2]
[333395632,1722102654183,-650.85,0.00013972,2]
[333395633,1722102654193,-500.0,0.00013972,2]
[333395634,1722102654203,-500.0,0.00013972,2]
[333395635,1722102654212,-591.69569076,0.00013972,2]
[333395636,1722102654221,-500.0,0.00013972,2]
[333395637,1722102654231,-500.0,0.00013972,2]
[333395638,1722102654240,-738.23,0.00013972,2]
[333395639,1722102654249,-500.0,0.00013972,2]
[333395640,1722102654258,-500.0,0.00013972,2]
[333395641,1722102654268,-1004.1,0.00013972,2]
[333395642,1722102654278,-862.01,0.00013972,2]
[333395643,1722102654288,-500.0,0.00013972,2]
[333395644,1722102654298,-500.0,0.00013972,2]
[333395645,1722102654307,-1531.53,0.00013972,2]
[333395646,1722102654317,-500.0,0.00013972,2]
[333395647,1722102654326,-500.0,0.00013972,2]
[333395648,1722102654338,-500.0,0.00013972,2]
[333395649,1722102654350,-500.0,0.00013972,2]
[333395650,1722102654360,-500.0,0.00013972,2]
[333395651,1722102654371,-5229.23,0.00013972,2]
[333395652,1722102654381,-500.0,0.00013972,2]
[333395653,1722102654390,-2051.53,0.00013972,2]
[333395654,1722102654399,-521.88,0.00013972,2]
[333395655,1722102654410,-500.0,0.00013972,2]
[333395656,1722102654419,-1296.95,0.00013972,2]
[333395657,1722102654429,-500.0,0.00013972,2]
[333395658,1722102654441,-517.48,0.00013972,2]
[333395659,1722102654450,-500.0,0.00013972,2]
[333395660,1722102654460,-3017.48,0.00013972,2]
[333395661,1722102654470,-500.0,0.00013972,2]
[333395662,1722102654480,-500.0,0.00013972,2]
[333395663,1722102654489,-500.0,0.00013972,2]
[333395664,1722102654499,-500.0,0.00013972,2]
[333395665,1722102654508,-1039.73,0.00013972,2]
[333395666,1722102654518,-500.0,0.00013972,2]
[333395667,1722102654527,-719.93,0.00013972,2]
[333395668,1722102654536,-1050.12,0.00013972,2]
[333395669,1722102654546,-500.0,0.00013972,2]
[333395670,1722102654556,-500.0,0.00013972,2]
[333395671,1722102654566,-500.0,0.00013972,2]
[333395672,1722102654575,-500.0,0.00013972,2]
[333395673,1722102654585,-500.0,0.00013972,2]
[333395674,1722102654594,-500.0,0.00013972,2]
[333395675,1722102654604,-500.0,0.00013972,2]
[333395676,1722102654613,-500.0,0.00013972,2]
[333395677,1722102654623,-500.0,0.00013972,2]
[333395678,1722102654633,-1137.82,0.00013972,2]
[333395679,1722102654643,-500.0,0.00013972,2]
[333395680,1722102654652,-622.23,0.00013972,2]
[333395681,1722102654661,-500.0,0.00013972,2]
[333395682,1722102654671,-500.0,0.00013972,2]
[333395683,1722102654682,-500.0,0.00013972,2]
[333395684,1722102654695,-692.24,0.00013972,2]
[333395685,1722102654704,-500.0,0.00013972,2]
[333395686,1722102654715,-500.0,0.00013972,2]
[333395687,1722102654725,-1111.09,0.00013972,2]
[333395688,1722102654735,-500.0,0.00013972,2]
[333395689,1722102654746,-1465.87,0.00013972,2]
[333395690,1722102654757,-510.81,0.00013972,2]
[333395691,1722102654767,-1165.34,0.00013972,2]
[333395692,1722102654778,-568.28,0.00013972,2]
[333395693,1722102654789,-1253.99,0.00013972,2]
[333395694,1722102654800,-617.49268695,0.00013972,2]
[333395695,1722102654809,-500.0,0.00013972,2]
[333395696,1722102654820,-524.44,0.00013972,2]
[333395697,1722102654830,-500.0,0.00013972,2]
[333395698,1722102654839,-500.0,0.00013972,2]
[333395699,1722102654849,-722.43,0.00013972,2]
[333395700,1722102654859,-2602.33,0.00013972,2]
[333395701,1722102654876,-500.0,0.00013972,2]
[333395702,1722102654891,-500.0,0.00013972,2]
[333395703,1722102654905,-970.87,0.00013972,2]
[333395704,1722102654917,-1044.21,0.00013972,2]
[333395705,1722102654932,-500.0,0.00013972,2]
[333395706,1722102654948,-500.0,0.00013972,2]
[333395707,1722102654963,-1566.42,0.00013972,2]
[333395708,1722102654977,-500.0,0.00013972,2]
[333395709,1722102654992,-258.75453979,0.00014,2]
[333395710,1722102655007,-2094.06045063,0.00014,2]
[333395711,1722102655020,-28061.11627825,0.00014,2]
[333395712,1722102655033,-247.18420879,0.00014,2]
[333395713,1722102655046,-1000.0,0.00014,14]
[333395714,1722102655060,-843.99999971,0.00014,2]
[333395715,1722102655072,-150.112233,0.00014,2]
[333395716,1722102655082,-78650.70432688,0.00014,2]
[333395717,1722102655301,-8698.1640257,0.00014,2]
[333395718,1722102655315,-111991.39474442,0.00014,2]
[333395719,1722102655327,-173.94734,0.00014009,2]
[333395720,1722102655342,-173.94734,0.00014239,2]
[333395721,1722102655354,-500.0,0.00014246,2]
[333395722,1722102655365,-500.0,0.00014246,2]
[333395723,1722102655378,-398.30343477,0.00014246,2]
[333395724,1722102655391,-500.0,0.00014246,2]
[333395725,1722102655402,-500.0,0.00014246,2]
[333395726,1722102655417,-374.4466312,0.00014246,2]
[333395727,1722102655428,-500.0,0.00014246,2]
[333395728,1722102655439,-500.0,0.00014246,2]
[333395729,1722102655452,-500.0,0.00014246,2]
[333395730,1722102655463,-500.0,0.00014246,2]
[333395731,1722102655475,-500.0,0.00014246,2]
[333395732,1722102655487,-500.0,0.00014246,2]
[333395733,1722102655498,-500.0,0.00014246,2]
[333395734,1722102655510,-500.0,0.00014246,2]
[333395735,1722102655522,-500.0,0.00014246,2]
[333395736,1722102655534,-500.0,0.00014246,2]
[333395737,1722102655547,-500.0,0.00014246,2]
[333395738,1722102655558,-554.65556923,0.00014246,2]
[333395739,1722102655570,-500.0,0.00014246,2]
[333395740,1722102655579,-500.0,0.00014246,2]
[333395741,1722102655589,-500.0,0.00014246,2]
[333395742,1722102655598,-648.97,0.00014246,2]
[333395743,1722102655608,-500.0,0.00014246,2]
[333395744,1722102655617,-500.0,0.00014246,2]
[333395745,1722102655627,-500.0,0.00014246,2]
[333395746,1722102655636,-500.0,0.00014246,2]
[333395747,1722102655646,-500.0,0.00014246,2]
[333395748,1722102655656,-500.0,0.00014246,2]
[333395749,1722102655665,-500.0,0.00014246,2]
[333395750,1722102655675,-500.0,0.00014246,2]
[333395751,1722102655684,-500.0,0.00014246,2]
[333395752,1722102655695,-500.0,0.00014246,2]
[333395753,1722102655705,-500.0,0.00014246,2]
[333395754,1722102655714,-500.0,0.00014246,2]
[333395755,1722102655724,-500.0,0.00014246,2]
[333395756,1722102655734,-500.0,0.00014246,2]
[333395757,1722102655744,-500.0,0.00014246,2]
[333395758,1722102655753,-500.0,0.00014246,2]
[333395759,1722102655763,-500.0,0.00014246,2]
[333395760,1722102655772,-500.0,0.00014246,2]
[333395761,1722102655782,-500.0,0.00014246,2]
[333395762,1722102655792,-500.0,0.00014246,2]
[333395763,1722102655802,-500.0,0.00014246,2]
[333395764,1722102655811,-500.0,0.00014246,2]
[333395765,1722102655821,-500.0,0.00014246,2]
[333395766,1722102655830,-500.0,0.00014246,2]
[333395767,1722102655839,-500.0,0.00014246,2]
[333395768,1722102655849,-500.0,0.00014246,2]
[333395769,1722102655858,-500.0,0.00014246,2]
[333395770,1722102655867,-500.0,0.00014246,2]
[333395771,1722102655876,-500.0,0.00014246,2]
[333395772,1722102655886,-500.0,0.00014246,2]
[333395773,1722102655895,-500.0,0.00014246,2]
[333395774,1722102655905,-500.0,0.00014246,2]
[333395775,1722102655914,-500.0,0.00014246,2]
[333395776,1722102655923,-500.0,0.00014246,2]
[333395777,1722102655933,-500.0,0.00014246,2]
[333395778,1722102656149,-585.33335433,0.00014246,2]
[333395779,1722102656164,-500.0,0.00014246,2]
[333395780,1722102656181,-500.0,0.00014246,2]
[333395781,1722102656192,-500.0,0.00014246,2]
[333395782,1722102656202,-500.0,0.00014246,2]
[333395783,1722102656212,-500.0,0.00014246,2]
[333395784,1722102656222,-492.82073849,0.00014246,2]
[333395785,1722102656231,-500.0,0.00014246,2]
[333395786,1722102656242,-500.0,0.00014246,2]
[333395787,1722102656251,-500.0,0.00014246,2]
[333395788,1722102656261,-500.0,0.00014246,2]
[333395789,1722102656271,-500.0,0.00014246,2]
[333395790,1722102656281,-503.15642272,0.00014246,2]
[333395791,1722102656291,-500.0,0.00014246,2]
[333395792,1722102656301,-504.88208967,0.00014246,2]
[333395793,1722102656311,-500.0,0.00014246,2]
[333395794,1722102656322,-500.0,0.00014246,2]
[333395795,1722102656333,-561.72781044,0.00014246,2]
[333395796,1722102656344,-500.0,0.00014246,2]
[333395797,1722102656353,-500.0,0.00014246,2]
[333395798,1722102656362,-654.6,0.00014246,2]
[333395799,1722102656372,-500.0,0.00014246,2]
[333395800,1722102656382,-566.26,0.00014246,2]
[333395801,1722102656391,-500.0,0.00014246,2]
[333395802,1722102656400,-725.66,0.00014246,2]
[333395803,1722102656410,-601.11,0.00014246,2]
[333395804,1722102656420,-502.90765232,0.00014246,2]
[333395805,1722102656430,-500.0,0.00014246,2]
[333395806,1722102656440,-500.0,0.00014246,2]
[333395807,1722102656453,-500.0,0.00014246,2]
[333395808,1722102656464,-500.0,0.00014246,2]
[333395809,1722102656474,-500.0,0.00014246,2]
[333395810,1722102656483,-374.21687233,0.00014246,2]
[333395811,1722102656492,-500.0,0.00014246,2]
[333395812,1722102656502,-500.0,0.00014246,2]
[333395813,1722102656511,-500.0,0.00014246,2]
[333395814,1722102656520,-500.0,0.00014246,2]
[333395815,1722102656530,-500.0,0.00014246,2]
[333395816,1722102656539,-500.0,0.00014246,2]
[333395817,1722102656550,-500.0,0.00014246,2]
[333395818,1722102656560,-500.0,0.00014246,2]
[333395819,1722102656569,-500.0,0.00014246,2]
[333395820,1722102656579,-500.0,0.00014246,2]
[333395821,1722102656589,-500.0,0.00014246,2]
[333395822,1722102656599,-500.0,0.00014246,2]
[333395823,1722102656609,-500.0,0.00014246,2]
[333395824,1722102656618,-710.53,0.00014246,2]
[333395825,1722102656630,-851.55,0.00014246,2]
[333395826,1722102656640,-500.0,0.00014246,2]
[333395827,1722102656649,-425.03227629,0.00014246,2]
[333395828,1722102656659,-500.0,0.00014246,2]
[333395829,1722102656669,-500.0,0.00014246,2]
[333395830,1722102656679,-500.0,0.00014246,2]
[333395831,1722102656689,-500.0,0.00014246,2]
[333395832,1722102656700,-830.66,0.00014246,2]
[333395833,1722102656710,-500.0,0.00014246,2]
[333395834,1722102656720,-500.0,0.00014246,2]
[333395835,1722102656731,-677.96,0.00014246,2]
[333395836,1722102656740,-500.0,0.00014246,2]
[333395837,1722102656751,-500.0,0.00014246,2]
[333395838,1722102656760,-500.0,0.00014246,2]
[333395839,1722102656770,-500.0,0.00014246,2]
[333395840,1722102656780,-1088.39,0.00014246,2]
[333395841,1722102656790,-500.0,0.00014246,2]
[333395842,1722102656800,-500.0,0.00014246,2]
[333395843,1722102656810,-500.0,0.00014246,2]
[333395844,1722102656820,-500.0,0.00014246,2]
[333395845,1722102656830,-500.0,0.00014246,2]
[333395846,1722102656841,-500.0,0.00014246,2]
[333395847,1722102656851,-609.85,0.00014246,2]
[333395848,1722102656860,-562.69,0.00014246,2]
[333395849,1722102656870,-640.77,0.00014246,2]
[333395850,1722102656879,-500.0,0.00014246,2]
[333395851,1722102656889,-500.0,0.00014246,2]
[333395852,1722102656898,-500.0,0.00014246,2]
[333395853,1722102656908,-500.0,0.00014246,2]
[333395854,1722102656918,-500.0,0.00014246,2]
[333395855,1722102656927,-500.0,0.00014246,2]
[333395856,1722102656937,-937.5,0.00014246,2]
[333395857,1722102656947,-500.0,0.00014246,2]
[333395858,1722102656957,-530.42710196,0.00014246,2]
[333395859,1722102656967,-507.36384255,0.00014246,2]
[333395860,1722102656977,-426.65691873,0.00014246,2]
[333395861,1722102656986,-500.0,0.00014246,2]
[333395862,1722102656997,-500.0,0.00014246,2]
[333395863,1722102657007,-523.24,0.00014246,2]
[333395864,1722102657017,-500.0,0.00014246,2]
[333395865,1722102657028,-500.0,0.00014246,2]
[333395866,1722102657038,-500.0,0.00014246,2]
[333395867,1722102657048,-500.0,0.00014246,2]
[333395868,1722102657060,-451.11322421,0.00014246,2]
[333395869,1722102657070,-518.03,0.00014246,2]
[333395870,1722102657081,-500.0,0.00014246,2]
[333395871,1722102657093,-500.0,0.00014246,2]
[333395872,1722102657104,-500.0,0.00014246,2]
[333395873,1722102657113,-500.0,0.00014246,2]
[333395874,1722102657122,-500.0,0.00014246,2]
[333395875,1722102657132,-500.0,0.00014246,2]
[333395876,1722102657142,-500.0,0.00014246,2]
[333395877,1722102657153,-500.0,0.00014246,2]
[333395878,1722102657162,-500.0,0.00014246,2]
[333395879,1722102657172,-975.16,0.00014246,2]
[333395880,1722102657182,-500.0,0.00014246,2]
[333395881,1722102657192,-1128.99,0.00014246,2]
[333395882,1722102657202,-933.2,0.00014246,2]
[333395883,1722102657211,-500.0,0.00014246,2]
[333395884,1722102657221,-500.0,0.00014246,2]
[333395885,1722102657231,-500.0,0.00014246,2]
[333395886,1722102657242,-500.0,0.00014246,2]
[333395887,1722102657251,-500.0,0.00014246,2]
[333395888,1722102657262,-1804.08,0.00014246,2]
[333395889,1722102657271,-3868.36,0.00014246,2]
[333395890,1722102657281,-7069.55,0.00014246,2]
[333395891,1722102657291,-500.0,0.00014246,2]
[333395892,1722102657300,-1233.51,0.00014246,2]
[333395893,1722102657309,-500.0,0.00014246,2]
[333395894,1722102657319,-3136.41,0.00014246,2]
[333395895,1722102657329,-500.0,0.00014246,2]
[333395896,1722102657344,-980.67,0.00014246,2]
[333395897,1722102657353,-508.72265509,0.00014246,2]
[333395898,1722102657362,-500.0,0.00014246,2]
[333395899,1722102657371,-500.0,0.00014246,2]
[333395900,1722102657383,-500.0,0.00014246,2]
[333395901,1722102657392,-1299.95,0.00014246,2]
[333395902,1722102657402,-500.0,0.00014246,2]
[333395903,1722102657413,-2057.15,0.00014246,2]
[333395904,1722102657423,-500.0,0.00014246,2]
[333395905,1722102657433,-500.0,0.00014246,2]
[333395906,1722102657444,-500.0,0.00014246,2]
[333395907,1722102657453,-500.0,0.00014246,2]
[333395908,1722102657462,-567.63,0.00014246,2]
[333395909,1722102657472,-500.0,0.00014246,2]
[333395910,1722102657482,-500.0,0.00014246,2]
[333395911,1722102657491,-500.0,0.00014246,2]
[333395912,1722102657502,-500.0,0.00014246,2]
[333395913,1722102657512,-702.63,0.00014246,2]
[333395914,1722102657520,-878.8,0.00014246,2]
[333395915,1722102657530,-500.0,0.00014246,2]
[333395916,1722102657540,-500.0,0.00014246,2]
[333395917,1722102657549,-500.0,0.00014246,2]
[333395918,1722102657559,-500.0,0.00014246,2]
[333395919,1722102657568,-555.9,0.00014246,2]
[333395920,1722102657579,-500.0,0.00014246,2]
[333395921,1722102657588,-1183.23,0.00014246,2]
[333395922,1722102657598,-500.0,0.00014246,2]
[333395923,1722102657608,-650.85,0.00014246,2]
[333395924,1722102657618,-391.39822416,0.00014246,2]
[333395925,1722102657627,-500.0,0.00014246,2]
[333395926,1722102657637,-500.0,0.00014246,2]
[333395927,1722102657647,-738.23,0.00014246,2]
[333395928,1722102657657,-500.0,0.00014246,2]
[333395929,1722102657667,-336.04364395,0.00014246,2]
[333395930,1722102657676,-1004.1,0.00014246,2]
[333395931,1722102657687,-862.01,0.00014246,2]
[333395932,1722102657697,-500.0,0.00014246,2]
[333395933,1722102657708,-1531.53,0.00014246,2]
[333395934,1722102657717,-500.0,0.00014246,2]
[333395935,1722102657726,-500.0,0.00014246,2]
[333395936,1722102657736,-500.0,0.00014246,2]
[333395937,1722102657747,-500.0,0.00014246,2]
[333395938,1722102657758,-239.00836812,0.00014246,2]
[333395939,1722102657768,-5229.23,0.00014246,2]
[333395940,1722102657778,-500.0,0.00014246,2]
[333395941,1722102657788,-2051.53,0.00014246,2]
[333395942,1722102657797,-521.88,0.00014246,2]
[333395943,1722102657806,-500.0,0.00014246,2]
[333395944,1722102657815,-1296.95,0.00014246,2]
[333395945,1722102657825,-500.0,0.00014246,2]
[333395946,1722102657835,-517.48,0.00014246,2]
[333395947,1722102657844,-522.26529551,0.00014246,2]
[333395948,1722102657854,-3017.48,0.00014246,2]
[333395949,1722102657864,-500.0,0.00014246,2]
[333395950,1722102657874,-500.0,0.00014246,2]
[333395951,1722102657884,-500.0,0.00014246,2]
[333395952,1722102657894,-608.73294513,0.00014246,2]
[333395953,1722102657905,-1039.73,0.00014246,2]
[333395954,1722102657914,-500.0,0.00014246,2]
[333395955,1722102657924,-719.93,0.00014246,2]
[333395956,1722102657933,-1050.12,0.00014246,2]
[333395957,1722102657945,-481.54945473,0.00014246,2]
[333395958,1722102657955,-500.0,0.00014246,2]
[333395959,1722102657964,-500.0,0.00014246,2]
[333395960,1722102657974,-500.0,0.00014246,2]
[333395961,1722102657984,-302.94005181,0.00014246,2]
[333395962,1722102657993,-385.94816487,0.00014246,2]
[333395963,1722102658002,-1137.82,0.00014246,2]
[333395964,1722102658012,-622.23,0.00014246,2]
[333395965,1722102658022,-500.0,0.00014246,2]
[333395966,1722102658032,-500.0,0.00014246,2]
[333395967,1722102658042,-500.0,0.00014246,2]
[333395968,1722102658051,-692.24,0.00014246,2]
[333395969,1722102658062,-500.0,0.00014246,2]
[333395970,1722102658071,-500.0,0.00014246,2]
[333395971,1722102658081,-1111.09,0.00014246,2]
[333395972,1722102658091,-500.0,0.00014246,2]
[333395973,1722102658101,-1465.87,0.00014246,2]
[333395974,1722102658111,-510.81,0.00014246,2]
[333395975,1722102658120,-1165.34,0.00014246,2]
[333395976,1722102658130,-568.28,0.00014246,2]
[333395977,1722102658140,-1253.99,0.00014246,2]
[333395978,1722102658150,-512.12136933,0.00014246,2]
[333395979,1722102658159,-524.44,0.00014246,2]
[333395980,1722102658169,-500.0,0.00014246,2]
[333395981,1722102658178,-500.0,0.00014246,2]
[333395982,1722102658188,-722.43,0.00014246,2]
[333395983,1722102658200,-2602.33,0.00014246,2]
[333395984,1722102658209,-500.0,0.00014246,2]
[333395985,1722102658219,-970.87,0.00014246,2]
[333395986,1722102658229,-1044.21,0.00014246,2]
[333395987,1722102658239,-500.0,0.00014246,2]
[333395988,1722102658249,-500.0,0.00014246,2]
[333395989,1722102658258,-1566.42,0.00014246,2]
[333395990,1722102658268,-500.0,0.00014246,2]
[333395991,1722102658278,-750.0,0.00014247,2]
[333395992,1722102658288,-153.0,0.00014427,2]
[333395993,1722102658297,-206.7714858,0.00014427,2]
[333395994,1722102658307,-153.0,0.00014427,2]
[333395995,1722102658316,-173.94734,0.00014469,2]
[333395996,1722102658326,-500.0,0.0001452,2]
[333395997,1722102658340,-228.21999468,0.0001452,2]
[333395998,1722102658349,-500.0,0.0001452,2]
[333395999,1722102658359,-500.0,0.0001452,2]
[333396000,1722102658369,-500.0,0.0001452,2]
[333396001,1722102658379,-491.29984699,0.0001452,2]
[333396002,1722102658389,-500.0,0.0001452,2]
[333396003,1722102658398,-500.0,0.0001452,2]
[333396004,1722102658409,-500.0,0.0001452,2]
[333396005,1722102658420,-282.76566051,0.0001452,2]
[333396006,1722102658430,-500.0,0.0001452,2]
[333396007,1722102658440,-500.0,0.0001452,2]
[333396008,1722102658450,-500.0,0.0001452,2]
[333396009,1722102658460,-500.0,0.0001452,2]
[333396010,1722102658469,-648.97,0.0001452,2]
[333396011,1722102658479,-500.0,0.0001452,2]
[333396012,1722102658489,-500.0,0.0001452,2]
[333396013,1722102658498,-500.0,0.0001452,2]
[333396014,1722102658508,-532.46,0.0001452,2]
[333396015,1722102658518,-500.0,0.0001452,2]
[333396016,1722102658528,-500.0,0.0001452,2]
[333396017,1722102658537,-500.0,0.0001452,2]
[333396018,1722102658547,-500.0,0.0001452,2]
[333396019,1722102658557,-500.0,0.0001452,2]
[333396020,1722102658567,-500.0,0.0001452,2]
[333396021,1722102658577,-500.0,0.0001452,2]
[333396022,1722102658587,-536.28139843,0.0001452,2]
[333396023,1722102658597,-500.0,0.0001452,2]
[333396024,1722102658608,-500.0,0.0001452,2]
[333396025,1722102658619,-500.0,0.0001452,2]